Cogmind - Beta 9.6 @@@ ROGUE MODE // 2020.06.06 @ 14:49:28 Player: aoemica Result: Escaped! Performance ------------- Evolutions (9) 4500 Regions Visited (29) 5800 Robots Destroyed (62) 310 Value Destroyed (1555) 1555 Prototype IDs (78) 1560 Alien Tech Used (3) 600 Bonus (9927) 9927 TOTAL SCORE: 24252 Bonus ------- Triggered Max Security 2000 Follower Combat Kills 286 Aligned with FarCom 300 Met Data Miner 300 Met Imprinter 300 Met Zhirov 300 Met Warlord at Base 500 MAIN.C Attacked Warlord 500 Met Warlord at Research 2000 Scanned by Researcher 500 Win 3000 Friendly Fire -59 Cogmind --------- Core Integrity 1479/1600 Matter 270/300 Energy 274/280 System Corruption 0% Temperature Cool (6) Movement Flying (18) Location To Epsilon Eridani Parts ------- > --- POWER (2) -------- Light Quantum Reactor Light Quantum Reactor > --- PROPULSION (6) --- Cooled Nuclear Pulse Thruster Cooled Nuclear Pulse Thruster Cooled Nuclear Pulse Thruster Experimental Cesium-ion Thruster Cooled Field Propulsion Drive Electron Diverter > --- UTILITY (15) ----- Large Storage Unit Inertial Stasis Machine Advanced Signal Interpreter Experimental Terrain Scanner Advanced Terrain Scan Processor Advanced Transmission Jammer Experimental Cloaking Device Improved Hacking Suite Advanced Hacking Suite Advanced Hacking Suite Advanced Hacking Suite Advanced Hacking Suite Improved System Shield Improved System Shield Advanced System Shield > --- WEAPON (2) ------- Force Lance > --- INVENTORY (10) --- Light Particle Reactor Experimental Coolant Injector Experimental Sensor Array Advanced ECM Suite Advanced Reaction Control System Advanced Reaction Control System Field Lobotomy Kit Vortex Lance Peak State ------------ > --- POWER ------------ Light Quantum Reactor Light Quantum Reactor > --- PROPULSION ------- Cooled Nuclear Pulse Thruster Cooled Nuclear Pulse Thruster Cooled Nuclear Pulse Thruster Experimental Cesium-ion Thruster Cooled Field Propulsion Drive Electron Diverter > --- UTILITY ---------- Large Storage Unit Inertial Stasis Machine Advanced Signal Interpreter Experimental Terrain Scanner Advanced Terrain Scan Processor Advanced Transmission Jammer Reaction Control System Experimental Cloaking Device Improved Hacking Suite Advanced Hacking Suite Advanced Hacking Suite Advanced Hacking Suite Improved System Shield Advanced System Shield > --- WEAPON ----------- Force Lance Vortex Lance > --- INVENTORY -------- Light Particle Reactor Experimental Coolant Injector Experimental Sensor Array Advanced ECM Suite Advanced Hacking Suite Dimensional Node Initializer Transdimensional Reconstructor Field Lobotomy Kit [Rating: 166] Favorites ----------- Power Micro Nuclear Core Engine Reinforced Ion Engine Power Core Micro Nuclear Core Reactor Vortex Chain Reactor Propulsion Improved Flight Unit Treads Light Treads Wheel Compact Wheel Flight Unit Improved Flight Unit Utility Large Storage Unit Device Advanced Terrain Scanner Storage Large Storage Unit Processor Advanced Terrain Scan Processor Hackware Makeshift System Shield Protection Improved Light Armor Plating Weapon Chainsword Energy Gun Medium Laser Ballistic Gun Makeshift Shrapnel Gun Ballistic Cannon Improved Light Cannon Launcher Grenade Launcher Special Weapon Field Lobotomy Kit Slashing Weapon Chainsword Piercing Weapon Vortex Lance Build | -11 -10 -10 -10 -9 -8 -7 -7 -7 -6 -6 -6 -6 -6 -5 -5 -5 -5 -5 -4 -4 -4 -4 -4 -3 -3 -3 -2 -2 -1 ------- Run | Scr Mat Min Exi Min Mat Fac Low Dat Pro Fac Low Low Zio Pro Fac Upp Upp War Pro Fac Upp Upp Zhi Pro Res Qua Res Tes Acc Slots Evolved 18 | . . . . . 4 2 . . . 2 . . . . 2 . . . . 2 . . . . 2 . 2 . 2 Power 1 | . . . . . . . . . . 1 . . . . . . . . . . . . . . . . . . . Propulsion 4 | . . . . . 1 1 . . . 1 . . . . . . . . . . . . . . . . . . 1 Utility 13 | . . . . . 3 1 . . . . . . . . 2 . . . . 2 . . . . 2 . 2 . 1 Weapon . | . . . . . . . . . . . . . . . . . . . . . . . . . . . . . . Parts Attached 199 | 6 10 6 7 . 12 20 3 . . 13 4 8 4 9 18 3 1 11 9 9 6 3 6 11 7 1 6 2 4 Power 12 | 1 1 . 1 . . 1 1 . . 1 . . . 1 2 . . 1 . . . . . . . . 2 . . Engine 3 | 1 1 . 1 . . . . . . . . . . . . . . . . . . . . . . . . . . Core 6 | . . . . . . 1 1 . . 1 . . . 1 2 . . . . . . . . . . . . . . Reactor 3 | . . . . . . . . . . . . . . . . . . 1 . . . . . . . . 2 . . Propulsion 26 | 2 1 . 1 . 2 4 . . . 2 . . . . 4 1 . 2 . 2 1 . 2 . . . . 1 1 Treads 2 | 2 . . . . . . . . . . . . . . . . . . . . . . . . . . . . . Leg . | . . . . . . . . . . . . . . . . . . . . . . . . . . . . . . Wheel 4 | . 1 . 1 . 2 . . . . . . . . . . . . . . . . . . . . . . . . Hover . | . . . . . . . . . . . . . . . . . . . . . . . . . . . . . . Flight 20 | . . . . . . 4 . . . 2 . . . . 4 1 . 2 . 2 1 . 2 . . . . 1 1 Utility 127 | 1 2 . 4 . 5 10 2 . . 9 4 7 4 8 12 2 . 7 9 5 4 3 4 10 6 1 4 1 3 Device 95 | . . . 2 . 2 3 1 . . 8 3 7 2 8 9 2 . 7 8 3 4 3 4 9 5 1 2 1 1 Storage 11 | 1 2 . 2 . 3 2 . . . . . . . . 1 . . . . . . . . . . . . . . Processor 4 | . . . . . . 2 1 . . . . . . . 1 . . . . . . . . . . . . . . Hackware 15 | . . . . . . 1 . . . 1 1 . 2 . 1 . . . 1 2 . . . 1 1 . 2 . 2 Protection 2 | . . . . . . 2 . . . . . . . . . . . . . . . . . . . . . . . Artifact . | . . . . . . . . . . . . . . . . . . . . . . . . . . . . . . Weapon 34 | 2 6 6 1 . 5 5 . . . 1 . 1 . . . . 1 1 . 2 1 . . 1 1 . . . . Energy Gun 7 | 2 1 3 . . 1 . . . . . . . . . . . . . . . . . . . . . . . . Energy Cannon . | . . . . . . . . . . . . . . . . . . . . . . . . . . . . . . Ballistic Gun 1 | . . . . . 1 . . . . . . . . . . . . . . . . . . . . . . . . Ballistic Cannon 5 | . 3 . 1 . 1 . . . . . . . . . . . . . . . . . . . . . . . . Launcher 8 | . 2 3 . . 2 1 . . . . . . . . . . . . . . . . . . . . . . . Special Weapon 1 | . . . . . . . . . . . . . . . . . 1 . . . . . . . . . . . . Impact Weapon . | . . . . . . . . . . . . . . . . . . . . . . . . . . . . . . Slashing Weapon 8 | . . . . . . 4 . . . 1 . 1 . . . . . . . 2 . . . . . . . . . Piercing Weapon 4 | . . . . . . . . . . . . . . . . . . 1 . . 1 . . 1 1 . . . . Special Melee Weapon . | . . . . . . . . . . . . . . . . . . . . . . . . . . . . . . Unidentified Prototypes 11 | . . . . . . . . . . . . . . . . . . 7 . 1 . . 1 . . . . . 2 Parts Lost 9 | . 2 1 . . 1 1 . . . . . . . . . 2 . . . 1 . . . . . . . 1 . Power . | . . . . . . . . . . . . . . . . . . . . . . . . . . . . . . Propulsion 5 | . 1 1 . . 1 . . . . . . . . . . 1 . . . . . . . . . . . 1 . Utility 3 | . . . . . . 1 . . . . . . . . . 1 . . . 1 . . . . . . . . . Weapon 1 | . 1 . . . . . . . . . . . . . . . . . . . . . . . . . . . . Highest Loss Streak 2 | . 1 1 . . 1 1 . . . . . . . . . 2 . . . 1 . . . . . . . 1 . Average Slot Usage (%) 90 | . 99 93 97 85 80 80 84 84 84 90 92 89 93 93 91 88 90 87 88 88 89 89 91 93 95 95 96 100 94 Engine 2 | . 14 14 14 14 9 . . . . . . . . . . . . . . . . . . . . . . . . Core 4 | . . . . . . 6 7 7 7 13 13 13 13 13 11 11 11 2 . . . . . . . . . . . Reactor 1 | . . . . . . . . . . . . . . . . . . 3 5 5 5 5 5 5 4 4 5 8 8 Treads 1 | . 25 8 . . . . . . . . . . . . . . . . . . . . . . . . . . . Wheel 4 | . 2 14 27 28 26 . . . . . . . . . . . . . . . . . . . . . . . . Flight 20 | . . . . . . 29 30 30 30 33 33 33 33 33 27 23 23 23 23 21 21 21 23 26 23 23 21 21 24 Device 9 | . . . . . 3 14 15 15 15 6 11 12 7 6 9 11 11 10 11 16 15 15 15 15 19 19 21 21 19 Storage 10 | . 27 28 25 14 22 7 7 7 7 6 6 6 6 6 5 5 5 5 5 5 5 5 5 5 4 4 4 4 4 Processor 9 | . . . . . . 14 23 23 23 20 14 13 13 13 11 11 11 11 11 10 10 10 10 10 9 9 8 8 8 Hackware 10 | . . . . . . 3 . . . 4 6 6 11 13 17 17 17 17 17 19 21 21 21 21 23 23 25 26 27 Energy Gun 2 | . 15 13 14 14 8 . . . . . . . . . . . . . . . . . . . . . . . . Ballistic Cannon 2 | . 12 14 14 14 7 . . . . . . . . . . . . . . . . . . . . . . . . Slashing Weapon 3 | . . . . . . . . . . 5 5 3 6 6 5 5 5 5 5 5 5 5 5 5 3 . . . . Piercing Weapon 1 | . . . . . . . . . . . . . . . . . . 3 5 5 5 5 5 4 4 9 8 8 4 Naked Turns . | . . . . . . . . . . . . . . . . . . . . . . . . . . . . . . Heaviest Build 193 | 13 48 49 96 96 193 27 24 24 24 33 32 32 32 32 34 33 41 60 60 61 62 62 62 62 66 64 67 62 62 Greatest Support 80 | 40 40 16 32 32 48 24 24 24 24 32 32 32 32 32 43 43 41 62 62 62 62 62 69 67 75 67 75 80 75 Greatest Overweight (x) 5 | . 2 3 2 2 5 1 . . . 1 . . . . . . . 1 . . . . 1 . . . . . . Average Overweight (x) . | . 1 2 1 2 3 . . . . . . . . . . . . . . . . . . . . . . . . Largest Inventory Capacity 50 | 6 16 16 24 24 50 44 10 10 10 10 10 10 10 10 16 10 10 10 10 10 10 10 10 10 10 10 10 10 10 Average Capacity 14 | 5 15 16 16 24 44 11 10 10 10 10 10 10 10 10 10 10 10 10 10 10 10 10 10 10 10 10 10 10 10 Most Carried 44 | 6 16 16 23 23 44 44 10 10 10 10 10 10 10 10 10 10 8 10 10 10 10 10 10 10 10 10 10 10 10 Average Carried 13 | 4 11 16 15 22 37 10 9 10 10 9 9 9 9 10 9 8 7 9 10 9 9 10 9 10 9 10 9 9 9 Final Capacity 44 | 6 16 16 24 24 44 10 10 10 10 10 10 10 10 10 10 10 10 10 10 10 10 10 10 10 10 10 10 10 10 Final Carried 44 | 6 16 16 22 23 44 10 10 10 10 10 10 9 10 10 10 8 8 10 10 10 10 10 10 10 10 10 10 9 8 Class Distribution -------------------- 21% | Hacker-Sprinter 19% | Scout 17% | Mutant 12% | Wizard-Ninja 9% | Hauler-Mutant 9% | Hacker-Ninja 8% | Hacker-Scout Dominant Class ---------------- Mutant | -10/Materials Mutant | -10/Mines Mutant | -10/Exiles Hauler-Mutant | -9/Mines Hauler-Mutant | -8/Materials Scout | -7/Factory Scout | -7/Lower Caves Scout | -7/Data Miner Scout | -6/Proximity Caves Scout | -6/Factory Scout | -6/Lower Caves Scout | -6/Lower Caves Hacker-Sprinter | -6/Zion Hacker-Sprinter | -5/Proximity Caves Hacker-Ninja | -5/Factory Hacker-Sprinter | -5/Upper Caves Hacker-Sprinter | -5/Upper Caves Hacker-Sprinter | -5/Warlord Hacker-Sprinter | -4/Proximity Caves Hacker-Ninja | -4/Factory Hacker-Scout | -4/Upper Caves Hacker-Scout | -4/Upper Caves Hacker-Scout | -4/Zhirov Hacker-Scout | -3/Proximity Caves Wizard-Ninja | -3/Research Wizard-Ninja | -3/Quarantine Wizard-Ninja | -2/Research Wizard-Ninja | -2/Testing Wizard-Ninja | -1/Access Resources | -11 -10 -10 -10 -9 -8 -7 -7 -7 -6 -6 -6 -6 -6 -5 -5 -5 -5 -5 -4 -4 -4 -4 -4 -3 -3 -3 -2 -2 -1 ----------- Run | Scr Mat Min Exi Min Mat Fac Low Dat Pro Fac Low Low Zio Pro Fac Upp Upp War Pro Fac Upp Upp Zhi Pro Res Qua Res Tes Acc Matter Collected 2740 | 260 370 131 100 20 276 112 39 . 92 112 58 76 44 100 83 107 20 110 60 115 . . . 170 100 80 60 . 45 Remotely . | . . . . . . . . . . . . . . . . . . . . . . . . . . . . . . Salvage Created 2009 | 85 767 242 . . 323 . . . . 39 . . . . 83 . . . . 273 . . . 124 39 . 34 . . Parts 120 | 1 50 15 . . 18 . . . . 7 . . . . 7 . . . . 10 . . . 4 4 . 4 . . Haulers Intercepted 6 | . 1 . . . 4 . . . . . . . . . . . . . . 1 . . . . . . . . . Recyclers Shooed 2 | . 2 . . . . . . . . . . . . . . . . . . . . . . . . . . . . Parts Field Recycled . | . . . . . . . . . . . . . . . . . . . . . . . . . . . . . . Retrieved Matter . | . . . . . . . . . . . . . . . . . . . . . . . . . . . . . . Parts Self-Destructed 77 | . . . . . . . . . 5 . . 2 . 1 . . . 67 . . 2 . . . . . . . . Prevented 17 | . . . . . . . . . . . . . . . . . . 17 . . . . . . . . . . . Kills | -11 -10 -10 -10 -9 -8 -7 -7 -7 -6 -6 -6 -6 -6 -5 -5 -5 -5 -5 -4 -4 -4 -4 -4 -3 -3 -3 -2 -2 -1 ------- Run | Scr Mat Min Exi Min Mat Fac Low Dat Pro Fac Low Low Zio Pro Fac Upp Upp War Pro Fac Upp Upp Zhi Pro Res Qua Res Tes Acc Combat Hostiles Destroyed 29 | . 18 7 . . 4 . . . . . . . . . . . . . . . . . . . . . . . . Guns 6 | . 4 2 . . . . . . . . . . . . . . . . . . . . . . . . . . . Cannons 11 | . 8 1 . . 2 . . . . . . . . . . . . . . . . . . . . . . . . AOE 12 | . 6 4 . . 2 . . . . . . . . . . . . . . . . . . . . . . . . Classes Destroyed 11 | 1 6 . . . 2 . . . . 1 . . . . . . . . . . . . . 1 . . . . . Worker 1 | . . . . . 1 . . . . . . . . . . . . . . . . . . . . . . . . Builder 1 | . 1 . . . . . . . . . . . . . . . . . . . . . . . . . . . . Tunneler 2 | . 1 1 . . . . . . . . . . . . . . . . . . . . . . . . . . . Hauler 6 | . 1 . . . 4 . . . . . . . . . . . . . . 1 . . . . . . . . . Recycler 4 | 1 3 . . . . . . . . . . . . . . . . . . . . . . . . . . . . Operator 1 | . . . . . . . . . . 1 . . . . . . . . . . . . . . . . . . . Watcher 14 | . 2 . . . 2 . . . . 1 . . . . 3 . . . . 4 . . . . 1 . 1 . . Swarmer 9 | . 6 1 . . 2 . . . . . . . . . . . . . . . . . . . . . . . . Grunt 20 | . 12 6 . . 2 . . . . . . . . . . . . . . . . . . . . . . . . Zionite 1 | . . . . . 1 . . . . . . . . . . . . . . . . . . . . . . . . Samaritan 3 | . . . . . . . . . . . . . . . . . . . . . . . . 3 . . . . . Best Kill Streak 5 | 1 5 3 . . 3 . . . . 1 . . . . 1 . . . . 2 . . . . 1 . 1 . . Combat Bots Only 4 | . 4 3 . . 2 . . . . . . . . . . . . . . . . . . . . . . . . Max Kills in Single Turn 2 | 1 2 2 . . 2 . . . . 1 . . . . 1 . . . . 1 . . . 1 1 . 1 . . Gunslinging . | . . . . . . . . . . . . . . . . . . . . . . . . . . . . . . Exploded 2 | . 2 2 . . 2 . . . . . . . . . . . . . . . . . . . . . . . . Melee . | . . . . . . . . . . . . . . . . . . . . . . . . . . . . . . Uniques/NPCs Destroyed . | . . . . . . . . . . . . . . . . . . . . . . . . . . . . . . Combat | -11 -10 -10 -10 -9 -8 -7 -7 -7 -6 -6 -6 -6 -6 -5 -5 -5 -5 -5 -4 -4 -4 -4 -4 -3 -3 -3 -2 -2 -1 -------- Run | Scr Mat Min Exi Min Mat Fac Low Dat Pro Fac Low Low Zio Pro Fac Upp Upp War Pro Fac Upp Upp Zhi Pro Res Qua Res Tes Acc Damage Taken 2296 | . 645 157 . 13 375 48 . . 19 . . 22 . . 27 61 42 . 85 108 73 . . . 77 113 338 93 . Core 438 | . 158 31 . 13 . 16 . . . . . . . . 27 13 . . 18 . . . . . . . 119 43 . Absorbed by Shields . | . . . . . . . . . . . . . . . . . . . . . . . . . . . . . . Core Remaining (%) 89 | 100 . . . 19 100 . . . 97 . . . . 100 . . . . 94 . . . . 100 . 100 . 88 92 Volleys Fired 141 | 14 65 14 . . 47 1 . . . . . . . . . . . . . . . . . . . . . . . Largest 2 | 2 2 2 . . 2 1 . . . . . . . . . . . . . . . . . . . . . . . Hottest 102 | 90 89 89 . . 102 33 . . . . . . . . . . . . . . . . . . . . . . . Shots Fired 231 | 18 110 20 . . 82 1 . . . . . . . . . . . . . . . . . . . . . . . Gun 110 | 18 45 9 . . 38 . . . . . . . . . . . . . . . . . . . . . . . . Cannon 104 | . 61 6 . . 37 . . . . . . . . . . . . . . . . . . . . . . . . Launcher 17 | . 4 5 . . 7 1 . . . . . . . . . . . . . . . . . . . . . . . Special . | . . . . . . . . . . . . . . . . . . . . . . . . . . . . . . Kinetic 106 | . 61 6 . . 39 . . . . . . . . . . . . . . . . . . . . . . . . Thermal 79 | 14 20 9 . . 36 . . . . . . . . . . . . . . . . . . . . . . . . Explosive 17 | . 4 5 . . 7 1 . . . . . . . . . . . . . . . . . . . . . . . Electromagnetic 29 | 4 25 . . . . . . . . . . . . . . . . . . . . . . . . . . . . Robot Hit Streak 15 | 4 15 10 . . 5 . . . . . . . . . . . . . . . . . . . . . . . . Robot Miss Streak 5 | 5 3 1 . . 4 . . . . . . . . . . . . . . . . . . . . . . . . Penetration Max . | . . . . . . . . . . . . . . . . . . . . . . . . . . . . . . Secondary Targets . | . . . . . . . . . . . . . . . . . . . . . . . . . . . . . . Shots Hit Robots 170 | 10 75 10 . . 44 . . . . 3 . . . . 4 . . . . 15 . . . 7 1 . 1 . . Core Hits 89 | 2 34 17 . . 18 . . . . 2 . . . . 3 . . . . 8 . . . 3 1 . 1 . . Critical Hits 2 | . . 1 . . . . . . . . . . . . . . . . . . . . . . . . 1 . . Critical Kills 2 | . . 1 . . . . . . . . . . . . . . . . . . . . . . . . 1 . . Critical Parts Destroyed . | . . . . . . . . . . . . . . . . . . . . . . . . . . . . . . Melee Attacks 289 | . . . . . . 5 . . . 46 3 4 . . 40 2 16 . 7 54 2 . . 28 37 1 23 4 17 Impact . | . . . . . . . . . . . . . . . . . . . . . . . . . . . . . . Slashing 226 | . . . . . . 5 . . . 46 3 4 . . 40 2 16 . 6 48 2 . . 22 32 . . . . Piercing 40 | . . . . . . . . . . . . . . . . . . . . . . . . . . 1 18 4 17 Entropic 23 | . . . . . . . . . . . . . . . . . . . 1 6 . . . 6 5 . 5 . . Sneak Attacks 13 | . . . . . . . . . . . . . . . 1 . . . . 3 . . . 7 1 . 1 . . Combat Hostiles . | . . . . . . . . . . . . . . . . . . . . . . . . . . . . . . Follow-up Attacks 2 | . . . . . . . . . . . . . . . . . . . . 2 . . . . . . . . . Damage Inflicted 5562 | 151 1619 354 . . 952 31 . . . 157 . . . . 224 . . . . 1108 . . . 742 142 . 82 . . Guns 1222 | 151 496 87 . . 488 . . . . . . . . . . . . . . . . . . . . . . . . Cannons 1147 | . 764 43 . . 340 . . . . . . . . . . . . . . . . . . . . . . . . Explosions 737 | . 358 224 . . 124 31 . . . . . . . . . . . . . . . . . . . . . . . Melee 2455 | . . . . . . . . . . 157 . . . . 224 . . . . 1108 . . . 742 142 . 82 . . Ramming 1 | . 1 . . . . . . . . . . . . . . . . . . . . . . . . . . . . Kinetic 1179 | . 764 43 . . 372 . . . . . . . . . . . . . . . . . . . . . . . . Thermal 885 | 112 230 87 . . 456 . . . . . . . . . . . . . . . . . . . . . . . . Explosive 693 | . 314 224 . . 124 31 . . . . . . . . . . . . . . . . . . . . . . . Electromagnetic 349 | 39 310 . . . . . . . . . . . . . . . . . . . . . . . . . . . . Impact . | . . . . . . . . . . . . . . . . . . . . . . . . . . . . . . Slashing 2015 | . . . . . . . . . . 157 . . . . 224 . . . . 750 . . . 742 142 . . . . Piercing 82 | . . . . . . . . . . . . . . . . . . . . . . . . . . . 82 . . Entropic 358 | . . . . . . . . . . . . . . . . . . . . 358 . . . . . . . . . Highest Corruption 2 | . 1 1 1 1 2 . . . . 2 . . . . . . . . . . . . . . . . . . . Average Corruption 1 | . 1 1 1 1 2 . . . . 1 . . . . . . . . . . . . . . . . . . . Corruption Purged 2 | . . . . . . . . . . 2 . . . . . . . . . . . . . . . . . . . Effects 19 | . 3 3 2 . 9 . . . . 2 . . . . . . . . . . . . . . . . . . . Message Errors 8 | . 1 2 1 . 2 . . . . 2 . . . . . . . . . . . . . . . . . . . Heat Flow Errors 2 | . . . . . 2 . . . . . . . . . . . . . . . . . . . . . . . . Energy Discharges 2 | . . . 1 . 1 . . . . . . . . . . . . . . . . . . . . . . . . Data Loss (minor) 4 | . . 1 . . 3 . . . . . . . . . . . . . . . . . . . . . . . . Targeting Errors 3 | . 2 . . . 1 . . . . . . . . . . . . . . . . . . . . . . . . Overload Shots . | . . . . . . . . . . . . . . . . . . . . . . . . . . . . . . Overflow Damage 440 | . 61 3 . . 16 1 . . . 17 . . . . . . . . . 106 . . . 236 . . . . . Projectiles 50 | . 34 . . . 16 . . . . . . . . . . . . . . . . . . . . . . . . Explosions 31 | . 27 3 . . . 1 . . . . . . . . . . . . . . . . . . . . . . . Melee 359 | . . . . . . . . . . 17 . . . . . . . . . 106 . . . 236 . . . . . Knockbacks 10 | . 4 1 . . 5 . . . . . . . . . . . . . . . . . . . . . . . . Impact . | . . . . . . . . . . . . . . . . . . . . . . . . . . . . . . Kinetic 10 | . 4 1 . . 5 . . . . . . . . . . . . . . . . . . . . . . . . Secondary . | . . . . . . . . . . . . . . . . . . . . . . . . . . . . . . Self-Inflicted Damage 88 | . 29 36 . . 23 . . . . . . . . . . . . . . . . . . . . . . . . Shots 4 | . 1 2 . . 1 . . . . . . . . . . . . . . . . . . . . . . . . Rammed 1 | . 1 . . . . . . . . . . . . . . . . . . . . . . . . . . . . Targets Rammed 1 | . 1 . . . . . . . . . . . . . . . . . . . . . . . . . . . . Kicked . | . . . . . . . . . . . . . . . . . . . . . . . . . . . . . . Crushed . | . . . . . . . . . . . . . . . . . . . . . . . . . . . . . . Highest Temperature 371 | 120 371 48 . . 216 . . . . 88 117 65 113 57 95 141 90 146 12 . 4 . 10 11 74 . 125 126 48 Average Temperature 35 | 55 107 25 . . 66 . . . . 20 42 16 39 19 22 60 22 56 2 . 4 . 5 3 41 . 23 26 16 Received Heat Transfer 576 | . 315 69 . . 72 18 . . 9 . . . . . . 9 9 . 30 . 9 . . . 18 9 9 . . Effects 3 | . 3 . . . . . . . . . . . . . . . . . . . . . . . . . . . . Shutdowns 1 | . 1 . . . . . . . . . . . . . . . . . . . . . . . . . . . . Energy Bleed 2 | . 2 . . . . . . . . . . . . . . . . . . . . . . . . . . . . Siege Activations . | . . . . . . . . . . . . . . . . . . . . . . . . . . . . . . Robots Corrupted . | . . . . . . . . . . . . . . . . . . . . . . . . . . . . . . Combat Hostiles . | . . . . . . . . . . . . . . . . . . . . . . . . . . . . . . Parts Fried . | . . . . . . . . . . . . . . . . . . . . . . . . . . . . . . Impact Corruptions . | . . . . . . . . . . . . . . . . . . . . . . . . . . . . . . Robots Melted . | . . . . . . . . . . . . . . . . . . . . . . . . . . . . . . Combat Hostiles . | . . . . . . . . . . . . . . . . . . . . . . . . . . . . . . Parts Melted 6 | . . 1 . . 5 . . . . . . . . . . . . . . . . . . . . . . . . Heat Transferred 2196 | 333 605 259 . . 999 . . . . . . . . . . . . . . . . . . . . . . . . Parts Sabotaged . | . . . . . . . . . . . . . . . . . . . . . . . . . . . . . . Parts Stolen . | . . . . . . . . . . . . . . . . . . . . . . . . . . . . . . Parts Stripped . | . . . . . . . . . . . . . . . . . . . . . . . . . . . . . . Power Chain Reactions 1 | . 1 . . . . . . . . . . . . . . . . . . . . . . . . . . . . Missiles Intercepted . | . . . . . . . . . . . . . . . . . . . . . . . . . . . . . . Alert | -11 -10 -10 -10 -9 -8 -7 -7 -7 -6 -6 -6 -6 -6 -5 -5 -5 -5 -5 -4 -4 -4 -4 -4 -3 -3 -3 -2 -2 -1 ------- Run | Scr Mat Min Exi Min Mat Fac Low Dat Pro Fac Low Low Zio Pro Fac Upp Upp War Pro Fac Upp Upp Zhi Pro Res Qua Res Tes Acc Peak Influence 1704 | 5 277 353 . . 174 160 . . . 161 . . . . 404 . . . . 470 . . . . 111 1617 1271 1704 1136 Average Influence 213 | . 124 188 . . 80 64 . . . 53 . . . . 97 . . . . 115 . . . . 42 1598 1152 1592 851 Maximum Alert Level 5 | . 1 1 . . . . . . . . . . . . 2 . . . . 2 . . . . . 5 4 5 4 Low Security (%) 79 | 100 77 78 . 100 100 100 . . . 100 . . . . 83 . . . . 76 . . . . 100 . . . . Level 1 4 | . 22 21 . . . . . . . . . . . . . . . . . 13 . . . . . . . . . Level 2 3 | . . . . . . . . . . . . . . . 16 . . . . 10 . . . . . . . 1 20 Level 3 2 | . . . . . . . . . . . . . . . . . . . . . . . . . . . 15 . 39 Level 4 6 | . . . . . . . . . . . . . . . . . . . . . . . . . . . 84 . 40 Level 5 . | . . . . . . . . . . . . . . . . . . . . . . . . . . . . . . High Security . | . . . . . . . . . . . . . . . . . . . . . . . . . . . . . . Max Security 1 | . . . . . . . . . . . . . . . . . . . . . . . . . . 99 . 98 . Squads Dispatched 27 | . 4 . . . 2 4 . . . 2 . . . . 1 . . . . . . . . . 1 6 . 5 2 Investigation 4 | . 2 . . . . 1 . . . . . . . . 1 . . . . . . . . . . . . . . Extermination 3 | . . . . . . 1 . . . 2 . . . . . . . . . . . . . . . . . . . Reinforcement 10 | . 2 . . . 2 2 . . . . . . . . . . . . . . . . . . 1 . . 3 . Assault 9 | . . . . . . . . . . . . . . . . . . . . . . . . . . 6 . 1 2 Garrison 1 | . . . . . . . . . . . . . . . . . . . . . . . . . . . . 1 . Intercept . | . . . . . . . . . . . . . . . . . . . . . . . . . . . . . . Construction Impeded . | . . . . . . . . . . . . . . . . . . . . . . . . . . . . . . Haulers Reinforced . | . . . . . . . . . . . . . . . . . . . . . . . . . . . . . . Stealth | -11 -10 -10 -10 -9 -8 -7 -7 -7 -6 -6 -6 -6 -6 -5 -5 -5 -5 -5 -4 -4 -4 -4 -4 -3 -3 -3 -2 -2 -1 --------- Run | Scr Mat Min Exi Min Mat Fac Low Dat Pro Fac Low Low Zio Pro Fac Upp Upp War Pro Fac Upp Upp Zhi Pro Res Qua Res Tes Acc Distress Signals 12 | . . . . . 4 1 . . . 3 . . . . . . . . . . . . . . . . 3 1 . Communications Jammed 7 | . . . . . . . . . . . . . . . . . . . . . . . . . . . 6 1 . Distress Signals 7 | . . . . . . . . . . . . . . . . . . . . . . . . . . . 6 1 . Times Spotted 194 | . 30 6 . 6 22 14 . . 1 14 . 8 . 1 12 7 2 . 3 7 5 . . 6 11 7 17 13 2 Peak Tracking Total 12 | . 5 3 . 10 5 5 . . 1 4 . 6 . 1 4 7 1 . 6 1 6 . . 6 4 11 5 12 3 Tactical Retreats 28 | . 2 . . . 1 4 . . . 3 . 3 . 1 1 1 2 . . . 3 . . 2 . . 4 1 . Traps | -11 -10 -10 -10 -9 -8 -7 -7 -7 -6 -6 -6 -6 -6 -5 -5 -5 -5 -5 -4 -4 -4 -4 -4 -3 -3 -3 -2 -2 -1 ------- Run | Scr Mat Min Exi Min Mat Fac Low Dat Pro Fac Low Low Zio Pro Fac Upp Upp War Pro Fac Upp Upp Zhi Pro Res Qua Res Tes Acc Traps Triggered 11 | . 2 . . . 1 1 . . . 1 . . . . . . . . . 1 . . . . 1 . 2 . 2 Indirectly . | . . . . . . . . . . . . . . . . . . . . . . . . . . . . . . Trap Hack Attempts . | . . . . . . . . . . . . . . . . . . . . . . . . . . . . . . Triggered . | . . . . . . . . . . . . . . . . . . . . . . . . . . . . . . Disarmed . | . . . . . . . . . . . . . . . . . . . . . . . . . . . . . . Reprogrammed . | . . . . . . . . . . . . . . . . . . . . . . . . . . . . . . Reused . | . . . . . . . . . . . . . . . . . . . . . . . . . . . . . . Traps Extracted . | . . . . . . . . . . . . . . . . . . . . . . . . . . . . . . Installed . | . . . . . . . . . . . . . . . . . . . . . . . . . . . . . . Triggered 14 | . . . . . . . . . 1 . . 2 . . . . . 6 . . . 5 . . . . . . . Machines | -11 -10 -10 -10 -9 -8 -7 -7 -7 -6 -6 -6 -6 -6 -5 -5 -5 -5 -5 -4 -4 -4 -4 -4 -3 -3 -3 -2 -2 -1 ---------- Run | Scr Mat Min Exi Min Mat Fac Low Dat Pro Fac Low Low Zio Pro Fac Upp Upp War Pro Fac Upp Upp Zhi Pro Res Qua Res Tes Acc Machines Disabled 17 | . 4 4 . . 4 . . . . 3 . . . . . . . . . . 2 . . . . . . . . Max in Single Turn 2 | . 1 2 . . 1 . . . . 1 . . . . . . . . . . 1 . . . . . . . . Garrison Access 11 | . . . . . . 1 . . . 2 . . . . 2 . . . . 2 . . . . 1 . 2 . 1 Machines Sabotaged . | . . . . . . . . . . . . . . . . . . . . . . . . . . . . . . Garrisons Compromised . | . . . . . . . . . . . . . . . . . . . . . . . . . . . . . . Overloaded Fab Kills . | . . . . . . . . . . . . . . . . . . . . . . . . . . . . . . Fab Network Shutdowns 2 | . . . . . . . . . . . . . . . 1 . . . . 1 . . . . . . . . . Hacking | -11 -10 -10 -10 -9 -8 -7 -7 -7 -6 -6 -6 -6 -6 -5 -5 -5 -5 -5 -4 -4 -4 -4 -4 -3 -3 -3 -2 -2 -1 --------- Run | Scr Mat Min Exi Min Mat Fac Low Dat Pro Fac Low Low Zio Pro Fac Upp Upp War Pro Fac Upp Upp Zhi Pro Res Qua Res Tes Acc Machines Accessed 120 | . 4 . 5 . 8 8 . 4 . 20 . . 1 . 16 . 1 9 . 14 1 . 8 . 11 . 4 . 6 Terminals 62 | . 4 . . . 6 5 . . . 13 . . . . 10 . . . . 9 . . . . 8 . 2 . 5 Fabricators 6 | . . . . . . . . . . 3 . . . . 2 . . . . 1 . . . . . . . . . Repair Stations 7 | . . . . . 1 2 . . . 1 . . . . 1 . . . . 1 . . . . 1 . . . . Recycling Units . | . . . . . . . . . . . . . . . . . . . . . . . . . . . . . . Scanalyzers 3 | . . . . . 1 . . . . . . . . . 1 . . . . 1 . . . . . . . . . Garrison Access 13 | . . . . . . 1 . . . 3 . . . . 2 . . . . 2 . . . . 2 . 2 . 1 Total Hacks 443 | . 11 . 49 . 21 21 . 27 . 54 . . 4 . 58 . 1 12 . 57 1 . 47 . 38 . 12 . 30 Successful 314 | . 4 . 49 . 14 11 . 27 . 26 . . 4 . 38 . 1 12 . 32 1 . 47 . 26 . 7 . 15 Failed 128 | . 7 . . . 7 10 . . . 28 . . . . 19 . . . . 25 . . . . 12 . 5 . 15 Catastrophic 18 | . 2 . . . 1 . . . . 6 . . . . 5 . . . . 4 . . . . . . . . . Database Lockouts 1 | . . . . . . . . . . . . . . . 1 . . . . . . . . . . . . . . Manual 196 | . 10 . 1 . 14 16 . . . 37 . . . . 39 . . 1 . 25 1 . . . 27 . 9 . 16 Terminals 231 | . 11 . . . 17 16 . . . 35 . . . . 40 . . . . 42 . . . . 33 . 9 . 28 Fabricators 23 | . . . . . . . . . . 9 . . . . 9 . . . . 5 . . . . . . . . . Repair Stations 15 | . . . . . 2 4 . . . 1 . . . . 2 . . . . 4 . . . . 2 . . . . Recycling Units . | . . . . . . . . . . . . . . . . . . . . . . . . . . . . . . Scanalyzers 6 | . . . . . 2 . . . . . . . . . 2 . . . . 2 . . . . . . . . . Garrison Access 27 | . . . . . . 1 . . . 9 . . . . 5 . . . . 4 . . . . 3 . 3 . 2 Terminal Hacks 217 | . 4 . 49 . 5 3 . 27 . 8 . . 4 . 17 . 1 12 . 14 1 . 47 . 13 . 4 . 8 Record 105 | . . . 48 . . . . 11 . . . . . . . . . 10 . . 1 . 35 . . . . . . Part Schematic 20 | . . . . . . . . 7 . 1 . . 4 . 1 . . . . 2 . . 4 . 1 . . . . Robot Schematic 6 | . . . . . . . . 6 . . . . . . . . . . . . . . . . . . . . . Robot Analysis 10 | . . . . . . . . . . . . . . . . . . . . 3 . . 4 . 2 . . . 1 Prototype ID Bank 20 | . 3 . . . 2 . . 3 . . . . . . 2 . . . . 3 . . 4 . 2 . . . 1 Open Door 4 | . . . . . . . . . . . . . . . . . 1 2 . . . . . . . . . . 1 Level Access Points 4 | . . . . . 1 . . . . . . . . . . . . . . 1 . . . . 1 . . . 1 Branch Access Points 7 | . 1 . . . 1 1 . . . . . . . . 1 . . . . 1 . . . . 1 . 1 . . Emergency Access Points 2 | . . . . . 1 . . . . . . . . . . . . . . 1 . . . . . . . . . Machine Index 2 | . . . . . . . . . . . . . . . 1 . . . . . . . . . 1 . . . . Terminal Index 4 | . . . . . . 1 . . . 1 . . . . 1 . . . . . . . . . 1 . . . . Fabricator Index 2 | . . . . . . . . . . 1 . . . . 1 . . . . . . . . . . . . . . Garrison Index 2 | . . . . . . . . . . . . . . . 1 . . . . . . . . . 1 . . . . Alert Level 2 | . . . . . . . . . . . . . . . 1 . . . . . . . . . . . . . 1 Unreport Threat 3 | . . . . . . . . . . . . . . . . . . . . . . . . . . . . . 3 Locate Traps 1 | . . . . . . . . . . 1 . . . . . . . . . . . . . . . . . . . Dispatch Records 1 | . . . . . . 1 . . . . . . . . . . . . . . . . . . . . . . . Recall Extermination 2 | . . . . . . . . . . 2 . . . . . . . . . . . . . . . . . . . Recall Reinforcements 1 | . . . . . . . . . . . . . . . . . . . . . . . . . 1 . . . . Hauler Manifests 1 | . . . . . . . . . . . . . . . . . . . . 1 . . . . . . . . . Registered Components 9 | . . . . . . . . . . 1 . . . . 4 . . . . 1 . . . . 2 . 1 . . Registered Prototypes 6 | . . . . . . . . . . . . . . . 3 . . . . 1 . . . . . . 2 . . Zone Layout 2 | . . . . . . . . . . 1 . . . . 1 . . . . . . . . . . . . . . EX-Prototype ID Bank 1 | . . . 1 . . . . . . . . . . . . . . . . . . . . . . . . . . Fabricator Hacks 14 | . . . . . . . . . . 5 . . . . 5 . . . . 4 . . . . . . . . . Load Schematic 7 | . . . . . . . . . . 3 . . . . 2 . . . . 2 . . . . . . . . . Build 7 | . . . . . . . . . . 2 . . . . 3 . . . . 2 . . . . . . . . . Repair Station Hacks 12 | . . . . . 2 2 . . . . . . . . 2 . . . . 4 . . . . 2 . . . . Scan Component 6 | . . . . . 1 1 . . . . . . . . 1 . . . . 2 . . . . 1 . . . . Repair 6 | . . . . . 1 1 . . . . . . . . 1 . . . . 2 . . . . 1 . . . . Recycling Unit Hacks . | . . . . . . . . . . . . . . . . . . . . . . . . . . . . . . Scanalyzer 6 | . . . . . 2 . . . . . . . . . 2 . . . . 2 . . . . . . . . . Insert Component 3 | . . . . . 1 . . . . . . . . . 1 . . . . 1 . . . . . . . . . Analyze 3 | . . . . . 1 . . . . . . . . . 1 . . . . 1 . . . . . . . . . Garrison Access Hacks 11 | . . . . . . 1 . . . 2 . . . . 2 . . . . 2 . . . . 1 . 2 . 1 Seal Access 11 | . . . . . . 1 . . . 2 . . . . 2 . . . . 2 . . . . 1 . 2 . 1 Unauthorized Hacks 54 | . . . . . 5 5 . . . 11 . . . . 10 . . . . 6 . . . . 10 . 1 . 6 Terminals 44 | . . . . . 5 5 . . . 7 . . . . 7 . . . . 5 . . . . 8 . 1 . 6 Track 3 | . . . . . 1 . . . . 1 . . . . . . . . . . . . . . . . . . 1 Assimilate 11 | . . . . . . 1 . . . 2 . . . . 3 . . . . 1 . . . . 3 . 1 . . Botnet 22 | . . . . . 3 3 . . . 3 . . . . 3 . . . . 3 . . . . 3 . . . 4 Disrupt 1 | . . . . . . . . . . . . . . . . . . . . . . . . . 1 . . . . Operators 7 | . . . . . 1 1 . . . 1 . . . . 1 . . . . 1 . . . . 1 . . . 1 Fabricators 4 | . . . . . . . . . . 1 . . . . 2 . . . . 1 . . . . . . . . . Siphon 4 | . . . . . . . . . . 1 . . . . 2 . . . . 1 . . . . . . . . . Repair Stations . | . . . . . . . . . . . . . . . . . . . . . . . . . . . . . . Recycling Units . | . . . . . . . . . . . . . . . . . . . . . . . . . . . . . . Scanalyzers . | . . . . . . . . . . . . . . . . . . . . . . . . . . . . . . Garrison Access 6 | . . . . . . . . . . 3 . . . . 1 . . . . . . . . . 2 . . . . Broadcast 1 | . . . . . . . . . . 1 . . . . . . . . . . . . . . . . . . . Redirect 1 | . . . . . . . . . . 1 . . . . . . . . . . . . . . . . . . . Reprogram 1 | . . . . . . . . . . . . . . . . . . . . . . . . . 1 . . . . Watchers 3 | . . . . . . . . . . 1 . . . . 1 . . . . . . . . . 1 . . . . Data Cores Recovered 1 | . . . . . . . . . . 1 . . . . . . . . . . . . . . . . . . . Used 1 | . . . . . . . . . . 1 . . . . . . . . . . . . . . . . . . . Hacking Detections 66 | . 4 . . . 6 7 . . . 15 . . . . 10 . . . . 8 . . . . 8 . 2 . 6 Full Trace Events . | . . . . . . . . . . . . . . . . . . . . . . . . . . . . . . Feedback Events . | . . . . . . . . . . . . . . . . . . . . . . . . . . . . . . Feedback Blocked . | . . . . . . . . . . . . . . . . . . . . . . . . . . . . . . Robot Schematics Acquired 6 | . . . . . . . . 6 . . . . . . . . . . . . . . . . . . . . . Robots Built . | . . . . . . . . . . . . . . . . . . . . . . . . . . . . . . Matter . | . . . . . . . . . . . . . . . . . . . . . . . . . . . . . . Time . | . . . . . . . . . . . . . . . . . . . . . . . . . . . . . . Total Robot Build Rating . | . . . . . . . . . . . . . . . . . . . . . . . . . . . . . . Part Schematics Acquired 23 | . . . . . 1 . . 7 . 1 . . 4 . 2 . . . . 3 . . 4 . 1 . . . . Parts Built 7 | . . . . . . . . . . 2 . . . . 3 . . . . 2 . . . . . . . . . Matter 1793 | . . . . . . . . . . 508 . . . . 841 . . . . 444 . . . . . . . . . Time 637 | . . . . . . . . . . 264 . . . . 244 . . . . 129 . . . . . . . . . Total Part Build Rating 39 | . . . . . . . . . . 11 . . . . 17 . . . . 11 . . . . . . . . . Parts Repaired 6 | . . . . . 1 1 . . . . . . . . 1 . . . . 2 . . . . 1 . . . . Time 338 | . . . . . 32 38 . . . . . . . . 28 . . . . 178 . . . . 62 . . . . Parts Recycled . | . . . . . . . . . . . . . . . . . . . . . . . . . . . . . . Recycled Matter . | . . . . . . . . . . . . . . . . . . . . . . . . . . . . . . Retrieved Matter . | . . . . . . . . . . . . . . . . . . . . . . . . . . . . . . Retrieved Components . | . . . . . . . . . . . . . . . . . . . . . . . . . . . . . . Parts Scanalyzed 3 | . . . . . 1 . . . . . . . . . 1 . . . . 1 . . . . . . . . . Part Schematics Acquired 3 | . . . . . 1 . . . . . . . . . 1 . . . . 1 . . . . . . . . . Parts Damaged 1 | . . . . . . . . . . . . . . . 1 . . . . . . . . . . . . . . Bothacking | -11 -10 -10 -10 -9 -8 -7 -7 -7 -6 -6 -6 -6 -6 -5 -5 -5 -5 -5 -4 -4 -4 -4 -4 -3 -3 -3 -2 -2 -1 ------------ Run | Scr Mat Min Exi Min Mat Fac Low Dat Pro Fac Low Low Zio Pro Fac Upp Upp War Pro Fac Upp Upp Zhi Pro Res Qua Res Tes Acc Used RIF Installer . | . . . . . . . . . . . . . . . . . . . . . . . . . . . . . . Robots Hacked . | . . . . . . . . . . . . . . . . . . . . . . . . . . . . . . Non-combat . | . . . . . . . . . . . . . . . . . . . . . . . . . . . . . . Combat . | . . . . . . . . . . . . . . . . . . . . . . . . . . . . . . Robot Hacks Applied . | . . . . . . . . . . . . . . . . . . . . . . . . . . . . . . Relay Couplers Released . | . . . . . . . . . . . . . . . . . . . . . . . . . . . . . . Robots Rewired . | . . . . . . . . . . . . . . . . . . . . . . . . . . . . . . Allies Hacked . | . . . . . . . . . . . . . . . . . . . . . . . . . . . . . . Hacks Repelled . | . . . . . . . . . . . . . . . . . . . . . . . . . . . . . . Allies | -11 -10 -10 -10 -9 -8 -7 -7 -7 -6 -6 -6 -6 -6 -5 -5 -5 -5 -5 -4 -4 -4 -4 -4 -3 -3 -3 -2 -2 -1 -------- Run | Scr Mat Min Exi Min Mat Fac Low Dat Pro Fac Low Low Zio Pro Fac Upp Upp War Pro Fac Upp Upp Zhi Pro Res Qua Res Tes Acc Total Allies 22 | . . 4 . 2 . 1 . . 1 1 . . 5 . 3 . . . . 1 . . . . 3 . 1 . . Largest Group 5 | . . 3 3 3 3 1 . . 1 2 . . 5 5 3 2 . . . 1 . . . . 3 . 1 . . Highest-Rated Group 104 | . . 63 63 61 61 26 . . 94 104 . . 101 101 30 20 . . . 26 . . . . 80 . 26 . . Highest-Rated Ally 94 | . . 31 31 31 31 26 . . 94 94 . . 28 28 10 10 . . . 26 . . . . 44 . 26 . . Total Orders 13 | . . . 2 . . . . . . . . . . . 5 . . . . 5 . . . . 1 . . . . STAY 5 | . . . . . . . . . . . . . . . 2 . . . . 2 . . . . 1 . . . . GOTO 1 | . . . . . . . . . . . . . . . . . . . . 1 . . . . . . . . . FOLLOW 4 | . . . . . . . . . . . . . . . 2 . . . . 2 . . . . . . . . . EXPLORE 1 | . . . . . . . . . . . . . . . 1 . . . . . . . . . . . . . . RETURN 2 | . . . 2 . . . . . . . . . . . . . . . . . . . . . . . . . . Ally Attacks 90 | . . 5 . 9 51 . . . 9 2 . . . 14 . . . . . . . . . . . . . . . Total Damage 1460 | . . 73 . 65 674 . . . 230 . . . . 418 . . . . . . . . . . . . . . . Kills 13 | . . 1 . 1 7 . . . 3 . . . . 1 . . . . . . . . . . . . . . . Allies Corrupted . | . . . . . . . . . . . . . . . . . . . . . . . . . . . . . . Allies Melted . | . . . . . . . . . . . . . . . . . . . . . . . . . . . . . . Intel | -11 -10 -10 -10 -9 -8 -7 -7 -7 -6 -6 -6 -6 -6 -5 -5 -5 -5 -5 -4 -4 -4 -4 -4 -3 -3 -3 -2 -2 -1 ------- Run | Scr Mat Min Exi Min Mat Fac Low Dat Pro Fac Low Low Zio Pro Fac Upp Upp War Pro Fac Upp Upp Zhi Pro Res Qua Res Tes Acc Robot Analysis Total 10 | . . . . . . . . . . . . . . . . . . . . 3 . . 4 . 2 . . . 1 Derelict Logs Recovered 16 | . . 1 . . . . 1 . 2 . 3 . 1 2 . 1 . . 2 . 2 1 . . . . . . . Drone Launches 5 | . . . 2 . . . . . . . . . . . 3 . . . . . . . . . . . . . . Drone Recoveries 2 | . . . 2 . . . . . . . . . . . . . . . . . . . . . . . . . . Exploration | -11 -10 -10 -10 -9 -8 -7 -7 -7 -6 -6 -6 -6 -6 -5 -5 -5 -5 -5 -4 -4 -4 -4 -4 -3 -3 -3 -2 -2 -1 ------------- Run | Scr Mat Min Exi Min Mat Fac Low Dat Pro Fac Low Low Zio Pro Fac Upp Upp War Pro Fac Upp Upp Zhi Pro Res Qua Res Tes Acc Turns Passed 15696 | 160 1051 491 536 254 1474 735 74 135 304 1367 708 274 548 401 1061 166 529 530 698 921 170 137 69 1016 700 116 557 61 453 Spaces Moved 21440 | 68 495 329 415 205 859 1077 138 77 287 2433 407 394 886 524 2123 631 462 757 876 2070 514 395 184 644 1135 293 1810 207 745 Core 1 | 1 . . . . . . . . . . . . . . . . . . . . . . . . . . . . . Treads 426 | 67 359 . . . . . . . . . . . . . . . . . . . . . . . . . . . . Legs . | . . . . . . . . . . . . . . . . . . . . . . . . . . . . . . Wheels 1944 | . 136 329 415 205 859 . . . . . . . . . . . . . . . . . . . . . . . . Hover . | . . . . . . . . . . . . . . . . . . . . . . . . . . . . . . Flight 19069 | . . . . . . 1077 138 77 287 2433 407 394 886 524 2123 631 462 757 876 2070 514 395 184 644 1135 293 1810 207 745 Fastest Speed 12 | 50 120 120 100 120 130 26 26 26 26 22 22 22 22 22 22 19 19 19 24 24 24 24 21 21 15 21 15 12 18 Average Speed 34 | 158 162 120 111 120 132 26 26 26 26 23 22 22 22 22 23 19 19 21 24 24 24 24 23 21 20 21 20 19 18 Slowest Speed 200 | 160 200 130 120 120 150 96 26 26 26 98 22 22 22 22 24 24 19 96 24 24 24 24 96 21 21 21 21 21 18 Overloaded Moves 102 | . . . . . . . . . . . . . . . . . . . . . . . . . 17 . 47 38 . Propulsion Burnouts . | . . . . . . . . . . . . . . . . . . . . . . . . . . . . . . Robots Hopped 53 | . . . . . . 5 2 . . 3 . . . . 6 . . . . 5 1 . . . 8 5 8 4 6 Cave-ins Triggered . | . . . . . . . . . . . . . . . . . . . . . . . . . . . . . . Teleports 1 | . . . . . . . . . . . . . . . . . . . . . . . . . . . . . 1 Exploration Rate (%) 57 | 4 84 68 64 62 69 35 19 72 46 72 63 64 84 72 49 76 50 93 69 37 86 69 62 76 30 42 54 42 19 Regions Visited 29 Branch Regions 20 Pre-discovered Areas 9 | . . . 1 . . . . 1 1 . . . 1 . . 1 . . . . 1 . 3 . . . . . . Known Exits Taken 25 | . 1 . . . 1 1 1 1 1 1 1 1 1 1 1 1 1 1 1 1 1 1 1 1 1 1 1 1 . Unknown Exits Taken 4 | 1 . 1 1 1 . . . . . . . . . . . . . . . . . . . . . . . . . Scrap Searched 25 | . . . . 1 . . 1 . 1 . 3 2 4 4 . 2 1 . 4 . . 1 . 1 . . . . . Spaces Dug 226 | . . . . . 11 5 . . . 39 3 4 . . 33 2 16 . 6 29 . . . 15 29 1 15 3 15 Terrain Destroyed 325 | . 34 32 . . 31 18 . . . 39 3 4 . . 33 2 16 . 6 29 . . . 15 29 1 15 3 15 Melee 215 | . . . . . . 5 . . . 39 3 4 . . 33 2 16 . 6 29 . . . 15 29 1 15 3 15 Projectile 4 | . 2 1 . . 1 . . . . . . . . . . . . . . . . . . . . . . . . AOE 106 | . 32 31 . . 30 13 . . . . . . . . . . . . . . . . . . . . . . . Actions | -11 -10 -10 -10 -9 -8 -7 -7 -7 -6 -6 -6 -6 -6 -5 -5 -5 -5 -5 -4 -4 -4 -4 -4 -3 -3 -3 -2 -2 -1 --------- Run | Scr Mat Min Exi Min Mat Fac Low Dat Pro Fac Low Low Zio Pro Fac Upp Upp War Pro Fac Upp Upp Zhi Pro Res Qua Res Tes Acc Total 28970 | 99 631 402 492 213 1124 1539 172 191 515 3152 1020 572 1236 806 2625 670 878 1125 1349 2417 553 434 207 1486 1540 339 1946 214 1023 Wait 6649 | 6 39 54 32 8 156 382 33 115 229 645 603 166 346 271 427 35 399 341 459 284 31 37 9 807 367 50 90 6 222 Move 21310 | 67 494 328 414 204 858 1067 133 76 286 2426 406 393 885 523 2110 630 461 756 875 2059 511 394 183 643 1118 283 1795 200 732 Hop 47 | . . . . . . 4 2 . . 3 . . . . 6 . . . . 5 1 . . . 8 4 6 2 6 Pick Up 140 | 6 16 . 28 1 35 10 1 . . 9 1 . . . 9 . . 5 . 6 1 . 3 . 4 . 4 . 1 Fast Attach 50 | 6 1 . 4 . 3 3 . . . 1 . . 1 2 6 . . 6 . 4 . . 4 3 2 . 2 . 2 Attach 48 | . 2 . 3 . 4 12 1 . . 4 1 2 . . 2 2 1 2 . 3 . . . . 2 . 3 1 3 Detach 30 | . . . 1 . 3 11 . . . 2 2 1 . . 1 . 1 3 . . . . . 1 1 . 1 . 2 Swap 104 | . 7 6 . . 5 5 2 . . 8 3 6 3 7 10 1 . 3 9 2 6 3 3 8 3 1 1 1 1 Drop 125 | . 6 . 10 . 13 39 . . . 8 1 . 1 3 14 . . 9 . 6 1 . 5 2 3 . 3 . 1 Fire 141 | 14 65 14 . . 47 1 . . . . . . . . . . . . . . . . . . . . . . . Melee 267 | . . . . . . 5 . . . 46 3 4 . . 40 2 16 . 6 48 2 . . 22 32 1 19 4 17 Ram . | . . . . . . . . . . . . . . . . . . . . . . . . . . . . . . Kick . | . . . . . . . . . . . . . . . . . . . . . . . . . . . . . . Crush 1 | . 1 . . . . . . . . . . . . . . . . . . . . . . . . . . . . Escape Stasis 58 | . . . . . . . . . . . . . . . . . . . . . . . . . . . 22 . 36 Rewire . | . . . . . . . . . . . . . . . . . . . . . . . . . . . . . . Trap . | . . . . . . . . . . . . . . . . . . . . . . . . . . . . . . Miscellaneous . | . . . . . . . . . . . . . . . . . . . . . . . . . . . . . . Route ------- -11/Scrapyard -10/Materials (discovered 4 exits: *Mat x3 / *Min) -10/Mines (discovered 2 exits: Mat / *Exi) -10/Exiles (discovered 2 exits: [*Min x2]) -9/Mines -8/Materials (discovered 3 exits: *Fac x3) -7/Factory (discovered 4 exits: *Fac / *Sto / *Low x2) -7/Lower Caves -7/Data Miner -6/Proximity Caves -6/Factory (discovered 4 exits: *Fac x2 / *Low x2) -6/Lower Caves -6/Lower Caves (discovered 2 exits: *Fac / *Zio) -6/Zion -5/Proximity Caves -5/Factory (discovered 4 exits: *Fac x2 / *Upp x2) -5/Upper Caves -5/Upper Caves (discovered 2 exits: *Fac / *War) -5/Warlord -4/Proximity Caves -4/Factory (discovered 8 exits: Res x4 / *Upp x2 / *Ext x2) -4/Upper Caves -4/Upper Caves (discovered 2 exits: Res / *Zhi) -4/Zhirov -3/Proximity Caves -3/Research (discovered 6 exits: Res x3 / Arm / *Qua x2) -3/Quarantine -2/Research (discovered 4 exits: *Acc x2 / *Tes x2) -2/Testing -1/Access To Epsilon Eridani History --------- Turn | Location | Event 56 | -11/Scrapyard | Discovered new exit (range 15) 161 | -11/Scrapyard | Entered Materials 317 | -10/Materials | Build established: Mutant 686 | -10/Materials | Discovered new exit (range 8) 1004 | -10/Materials | Core integrity fell below 50% 1045 | -10/Materials | Discovered new exit (range 12) 1104 | -10/Materials | Identified exit to Mines 1146 | -10/Materials | Discovered new exit (range 12) 1212 | -10/Materials | Entered Mines 1437 | -10/Mines | Assisted by bots powering up and referring to "LRC-V3" 1522 | -10/Mines | Escorted by a lone wolf Derelict 1585 | -10/Mines | Identified exit to Materials 1677 | -10/Mines | Deemed a non-threat by the Exiles lab entrance 1678 | -10/Mines | Discovered new exit (range 5) 1703 | -10/Mines | Entered Exiles 1703 | -10/Exiles | Accompanied by 3 allies 1758 | -10/Exiles | Discovered new exit (range 14) 1770 | -10/Exiles | Met 8R-AWN 1786 | -10/Exiles | Met EX-HEX 1858 | -10/Exiles | Met EX-BIN 1947 | -10/Exiles | Aligned with FarCom system 1949 | -10/Exiles | Given EX-Vault access code 1975 | -10/Exiles | Opened EX-Vault 1988 | -10/Exiles | Found Supersonic Drone Bay 2036 | -10/Exiles | Exiles lab attacked by MAIN.C 2040 | -10/Exiles | Found Field Lobotomy Kit 2130 | -10/Exiles | Learned location of Zion (-6) 2222 | -10/Exiles | Discovered new exit (range 10) 2239 | -10/Exiles | Left Exiles lab with Field Lobotomy Kit 2239 | -10/Exiles | Entered Mines 2239 | -9/Mines | Accompanied by 2 allies 2329 | -9/Mines | Assembled infested the area 2337 | -9/Mines | Core integrity fell below 20% 2466 | -9/Mines | Build established: Hauler-Mutant 2477 | -9/Mines | Discovered new exit (range 5) 2493 | -9/Mines | Entered Materials 2493 | -8/Materials | Accompanied by 3 allies 2493 | -8/Materials | Evolved 4 slots: Propulsion x1, Utility x3 2498 | -8/Materials | Led the pair of lost Derelicts to an unsafe place 2750 | -8/Materials | Discovered new exit (range 18) 3030 | -8/Materials | Build established: Hauler-Skirmisher 3177 | -8/Materials | Repaired Imp. Light Cannon? 3342 | -8/Materials | Build established: Hauler-Mutant 3870 | -8/Materials | Identified exit to Factory 3967 | -8/Materials | Entered Factory 3967 | -7/Factory | Evolved 2 slots: Propulsion x1, Utility x1 4187 | -7/Factory | Discovered new exit (range 7) 4263 | -7/Factory | Repaired Lgt. Nuclear Core 4622 | -7/Factory | Identified exit to Storage 4622 | -7/Factory | Identified exit to Lower Caves 4686 | -7/Factory | Discovered new exit (range 15) 4702 | -7/Factory | Entered Lower Caves 4707 | -7/Lower Caves | Learned Factory stockpile data 4772 | -7/Lower Caves | A Derelict revealed a hidden shortcut to meet someone special 4775 | -7/Lower Caves | Identified exit to Data Miner 4776 | -7/Lower Caves | Entered Data Miner 4776 | -7/Data Miner | Discovered new exit (range 6) 4780 | -7/Data Miner | Met Data Miner 4800 | -7/Data Miner | Learned location of Section 7 (-3) 4800 | -7/Data Miner | Acquired the access code to Warlord's prototype stash 4892 | -7/Data Miner | Received God Mode back door access code from Data Miner 4897 | -7/Data Miner | Identified exit to Proximity Caves 4911 | -7/Data Miner | Entered Proximity Caves 4996 | -6/Proximity Caves | Build established: Scout 5007 | -6/Proximity Caves | Spotted B-75 Beast 5082 | -6/Proximity Caves | Escorted by Enhanced Grunt 5118 | -6/Proximity Caves | Learned location of 1 exit from Factory 5176 | -6/Proximity Caves | Discovered new exit (range 18) 5196 | -6/Proximity Caves | Identified exit to Factory 5215 | -6/Proximity Caves | Entered Factory 5215 | -6/Factory | Accompanied by 1 ally 5215 | -6/Factory | Evolved 2 slots: Power x1, Propulsion x1 5216 | -6/Factory | Identified exit to Lower Caves 5367 | -6/Factory | Discovered new exit (range 20) 5394 | -6/Factory | Identified exit to Factory 5553 | -6/Factory | Discovered exit to Lower Caves (range 9) 5987 | -6/Factory | Fabricated Exp. Cesium-ion Thruster (x1) 6495 | -6/Factory | Discovered exit to Factory (range 15) 6537 | -6/Factory | Fabricated Imp. Hacking Suite (x1) 6582 | -6/Factory | Entered Lower Caves 6587 | -6/Lower Caves | Learned Factory terminal intel 6608 | -6/Lower Caves | Learned Factory security intel 6624 | -6/Lower Caves | Learned Factory security intel 6778 | -6/Lower Caves | Discovered new exit (range 14) 7290 | -6/Lower Caves | Identified exit to Lower Caves 7290 | -6/Lower Caves | Entered another Lower Caves area 7300 | -6/Lower Caves | Spotted B-75 Beast 7308 | -6/Lower Caves | Discovered exit to Factory (range 18) 7540 | -6/Lower Caves | Discovered new exit (range 8) 7541 | -6/Lower Caves | Identified exit to Zion 7564 | -6/Lower Caves | Entered Zion 7590 | -6/Zion | Given A8's code to call for help 7773 | -6/Zion | Rebuked by Imprinter 7809 | -6/Zion | Gained Derelict followers 7972 | -6/Zion | Build established: Hacker-Sprinter 7972 | -6/Zion | Discovered new exit (range 15) 7976 | -6/Zion | Identified exit to Proximity Caves 8112 | -6/Zion | Entered Proximity Caves 8112 | -5/Proximity Caves | Accompanied by 5 allies 8131 | -5/Proximity Caves | Learned Factory emergency access door positions 8434 | -5/Proximity Caves | Learned 4 Factory zone layouts 8501 | -5/Proximity Caves | Discovered exit to Factory (range 8) 8513 | -5/Proximity Caves | Entered Factory 8513 | -5/Factory | Evolved 2 slots: Utility x2 8514 | -5/Factory | Identified exit to Upper Caves 8515 | -5/Factory | Identified exit to Factory 8518 | -5/Factory | Loaded intel: 20 terminal locations 8875 | -5/Factory | Fabricated Exp. Sensor Array (x1) 9155 | -5/Factory | Central database locked down 9188 | -5/Factory | Fabricated Exp. Cesium-ion Thruster? 9227 | -5/Factory | Build established: Hacker-Ninja 9251 | -5/Factory | Repaired Field Propulsion Drive 9341 | -5/Factory | Fabricated Exp. Cesium-ion Thruster (x1) 9395 | -5/Factory | Discovered exit to Factory (range 19) 9399 | -5/Factory | Local fabrication network quarantined 9574 | -5/Factory | Entered Upper Caves 9574 | -5/Upper Caves | Accompanied by 2 allies 9719 | -5/Upper Caves | Discovered new exit (range 9) 9731 | -5/Upper Caves | Identified exit to Upper Caves 9740 | -5/Upper Caves | Entered another Upper Caves area 9741 | -5/Upper Caves | Discovered exit to Factory (range 8) 9765 | -5/Upper Caves | Attracted the attention of an 0b10 checkpoint 9877 | -5/Upper Caves | Build established: Hacker-Sprinter 9904 | -5/Upper Caves | Spotted B-75 Beast 10247 | -5/Upper Caves | Discovered new exit (range 7) 10248 | -5/Upper Caves | Identified exit to Warlord 10269 | -5/Upper Caves | Entered Warlord 10290 | -5/Warlord | Visited the Vortex Lab 10291 | -5/Warlord | Found Prototype Piercing Weapon 10293 | -5/Warlord | Found Prototype Piercing Weapon 10313 | -5/Warlord | Warlord's base attacked by MAIN.C 10314 | -5/Warlord | Met Warlord 10378 | -5/Warlord | Opened Warlord's prototype stash 10386 | -5/Warlord | Found Prototype Reactor 10386 | -5/Warlord | Identified Vortex Chain Reactor 10393 | -5/Warlord | Found Prototype Device 10394 | -5/Warlord | Identified Exp. Focal Shield 10404 | -5/Warlord | Found Prototype Device 10404 | -5/Warlord | Identified Exp. Cloaking Device 10412 | -5/Warlord | Found Prototype Hackware 10413 | -5/Warlord | Identified Vortex Lance (x2) 10663 | -5/Warlord | Warlord forces counterattacked 10786 | -5/Warlord | Opened side exit 10797 | -5/Warlord | Spotted Striker 10797 | -5/Warlord | Discovered new exit (range 9) 10799 | -5/Warlord | Identified exit to Proximity Caves 10799 | -5/Warlord | Entered Proximity Caves 10883 | -4/Proximity Caves | Learned Research security intel 10884 | -4/Proximity Caves | Learned location of 1 exit from Research 10986 | -4/Proximity Caves | Received a Behemoth hack from an annoying Tinkerer 11491 | -4/Proximity Caves | Discovered exit to Factory (range 13) 11497 | -4/Proximity Caves | Entered Factory 11497 | -4/Factory | Evolved 2 slots: Utility x2 11498 | -4/Factory | Identified Ghost Barrier 11604 | -4/Factory | Repaired Exp. Cesium-ion Thruster? 11640 | -4/Factory | Discovered new exit (range 15) 11650 | -4/Factory | Identified exit to Extension 11797 | -4/Factory | Fabricated Exp. Terrain Scanner (x1) 11919 | -4/Factory | Repaired Exp. Cesium-ion Thruster? 11936 | -4/Factory | Fabricated Adv. Hacking Suite? 12109 | -4/Factory | Build established: Hacker-Ninja 12198 | -4/Factory | Local fabrication network quarantined 12265 | -4/Factory | Discovered new exit (range 27) 12333 | -4/Factory | Identified exit to Upper Caves 12360 | -4/Factory | Identified exit to Research 12418 | -4/Factory | Entered Upper Caves 12438 | -4/Upper Caves | Attracted the attention of an 0b10 checkpoint 12443 | -4/Upper Caves | Encountered a Warlord checkpoint 12471 | -4/Upper Caves | Found Alien Artifact 12567 | -4/Upper Caves | Acquired the password to a Derelict Tinkerer's latest research 12569 | -4/Upper Caves | Learned location of 1 exit from Research 12579 | -4/Upper Caves | Discovered new exit (range 4) 12580 | -4/Upper Caves | Identified exit to Upper Caves 12588 | -4/Upper Caves | Entered another Upper Caves area 12602 | -4/Upper Caves | Encountered a Warlord checkpoint 12617 | -4/Upper Caves | Discovered exit to Research (range 19) 12628 | -4/Upper Caves | Spotted B-86 Titan 12646 | -4/Upper Caves | Learned location of 1 exit from Research 12710 | -4/Upper Caves | Build established: Hacker-Scout 12721 | -4/Upper Caves | Discovered new exit (range 13) 12724 | -4/Upper Caves | Identified exit to Zhirov 12725 | -4/Upper Caves | Entered Zhirov 12725 | -4/Zhirov | Discovered new exit (range 3) 12730 | -4/Zhirov | Met Zhirov 12737 | -4/Zhirov | Learned location of Quarantine (-3) 12737 | -4/Zhirov | Learned location of Testing (-2) 12737 | -4/Zhirov | Learned location of Command (-1) 12740 | -4/Zhirov | Zhirov requested help retrieving the SGEMP Prototype 12746 | -4/Zhirov | Found Alien Artifact 12746 | -4/Zhirov | Identified Integrated Reactor 12746 | -4/Zhirov | Installed Integrated Reactor, increased core energy generation (+2%) 12756 | -4/Zhirov | Found Alien Artifact 12788 | -4/Zhirov | Identified exit to Proximity Caves 12794 | -4/Zhirov | Entered Proximity Caves 13213 | -3/Proximity Caves | Discovered exit to Research (range 30) 13810 | -3/Proximity Caves | Entered Research 13810 | -3/Research | Evolved 2 slots: Utility x2 13811 | -3/Research | Identified exit to Research 13811 | -3/Research | Identified exit to Quarantine 13885 | -3/Research | Repaired Reaction Control System? 13971 | -3/Research | Identified exit to Armory 14101 | -3/Research | Build established: Wizard-Ninja 14507 | -3/Research | Spotted B-90 Cyclops 14510 | -3/Research | Entered Quarantine 14511 | -3/Quarantine | Maximum security lockdown engaged 14581 | -3/Quarantine | Discovered exit to Research (range 16) 14626 | -3/Quarantine | Entered Research 14626 | -2/Research | Warlord forces began assault on 0b10 14626 | -2/Research | Evolved 2 slots: Utility x2 14653 | -2/Research | Discovered new exit (range 27) 14720 | -2/Research | Identified exit to Testing 14736 | -2/Research | Research machine network offline 14767 | -2/Research | Discovered new exit (range 25) 14829 | -2/Research | Discovered new exit (range 8) 14830 | -2/Research | Identified exit to Access 14860 | -2/Research | Borebot progress halted 14863 | -2/Research | Borebot progress halted 14901 | -2/Research | Borebot progress halted 14901 | -2/Research | Spotted Striker 14982 | -2/Research | Met up with Warlord 15140 | -2/Research | Spotted B-90 Cyclops 15144 | -2/Research | Spotted Striker 15183 | -2/Research | Entered Testing 15184 | -2/Testing | Maximum security lockdown engaged 15201 | -2/Testing | Garrison activated, responded to threat 15207 | -2/Testing | Scanned by Researcher 15219 | -2/Testing | Protovariant out of control (PG-1T12H4UDGA) 15242 | -2/Testing | Discovered exit to Access (range 15) 15244 | -2/Testing | Entered Access 15244 | -1/Access | Evolved 2 slots: Propulsion x1, Utility x1 15368 | -1/Access | Identified exit to Surface 15494 | -1/Access | First assault squad dispatched 15522 | -1/Access | Incoming assault squad redirected 15582 | -1/Access | Identified Dimensional Node Initializer 15582 | -1/Access | Initialized slip node 15609 | -1/Access | Identified Transdimensional Reconstructor 15609 | -1/Access | Warped through subspace to slip node 15697 | *** | Escaped! Last Messages --------------- 15580_ K-01 Serf cleans the Terminal. 15581_ Connecting with Terminal... >>Open Sealed Barrier opened. 15581_ The Access Shell folds into the floor. 15582_ Identified Dimensional Node Initializer. 15582_ Initializer activates and latches into the ground. 15587_ K-01 Serf cleans the Terminal. 15591_ Connecting with Terminal... >>Trojan(Botnet) Trojan loaded successfully. Testing... Terminal linked with 3 systems. Awaiting botnet instructions. >>Trojan(Track) Trojan loaded successfully. Testing... Tracking enabled and active. 15609_ Identified Transdimensional Reconstructor. 15609_ Warped through subspace, drawn to slip node. Map ----- +----------------------------------------------------+ | #### ###################### ?+ ? ? | | #### ###################### ? # ? | | #### # ############ # | | #### # ############ #####? | | # !!! ############ ###?## | | # * !!! ############ ? ####?# | | #### # !! ############ | | #### u+ ############+###############?##### | | #### # ####?###### #### ##### | | #### # ########### k != ####/##### | | #### ##################### != ## ? | | #### ############## !! ## | | #### # ] # ## | | ########### # ! # ## "" | | ########### + # ## "" | | ########### # # ## """"" | | ########### # # ## """"" | | ########### ############################# ?"" | | ########### ############################# "" | | ########### ####### #####################? | | ###########A """T""" """" # | | ###########A """ """ """" BB # | | ########### g """" BB s###+##### | | ########### """" s ? | | ########### "" """" s s | | #### # @" """" | | #### # < ""?" | | #### #R """" BB ######### | | ?# # """" BB # | | Y # #u """" # | | + # ####### #####################"" | | # # #############################"T | | ## # #############################"" | | ## # ############################# | | ## # ############################# | | ## ? #u ##################################### | | ## #u ##################################### | | ## # ############################### | | ######### ############### ###?######? | | ?##?### ############## ? ########## ? | | ############## + ? | | = ############## # #####?###+##?# | | ? ####### ############## # #### ? | | ########################## #?#### | | ??# ? ###########?##########+####? #### ? | | ?? ########?###?######### ##### #?## ?? ? | | ? ? ? + ? ? ? ? / ?"""?? | | ???? # ################?###+#?+#?##### ?? ?""??? | | ??# ??# #########?########?# ?? #?# ""???? | | ????#?## ##?################# ? ### "????? | +----------------------------------------------------+ Best States ------------- Heat Dissipation 78 Energy Generation 65 Energy Capacity 700 Matter Stores 350 Matter Capacity 350 Sight Range 20 Robot Scan Range 30 Terrain Scan Range 30 Terrain Scan Density 210 ECM Strength 3 Jamming Range 16 Cloak Strength 4 Power Amplification 20 Additional Mass Support 16 Armor Coverage 150 Thermal Conversion 60 Evasion (%) 77 Recoil Reduction 2 Offensive Hacking 68 Defensive Hacking 43 Item Schematics ----------------- Humpback | -8/Materials | Scanalyzed Combat Drone Bay | -7/Data Miner | Free Lgt. Regenerative Plating | -7/Data Miner | Free Exp. Flexi-carbon Leg | -7/Data Miner | Free Cmb. Gravmag System | -7/Data Miner | Free Exp. Cesium-ion Thruster | -7/Data Miner | Free Exp. Targeting Computer | -7/Data Miner | Free Plasma Sword | -7/Data Miner | Free Imp. Hacking Suite | -6/Factory | Hacked Hvy. Beamcaster | -6/Zion | Free Hvy. Riot Gun | -6/Zion | Free Battle Cannon | -6/Zion | Free Slug Cannon | -6/Zion | Free Exp. Sensor Array | -5/Factory | Hacked Adv. ECM Suite | -5/Factory | Scanalyzed Exp. Terrain Scanner | -4/Factory | Hacked Adv. Hacking Suite | -4/Factory | Hacked Inertial Stasis Machine | -4/Factory | Scanalyzed Assault Drone Bay | -4/Zhirov | Free Exp. Heat Sink | -4/Zhirov | Free Exp. Optical Array | -4/Zhirov | Free Imp. Arc Thrower | -4/Zhirov | Free Exp. Hacking Suite | -3/Research | Hacked Robot Schematics ------------------ S-27 Virus | -7/Data Miner | Free G-50 Soldier | -7/Data Miner | Free G-67 Veteran | -7/Data Miner | Free X-72 Disruptor | -7/Data Miner | Free P-70 Sage | -7/Data Miner | Free I-36 Angel | -7/Data Miner | Free Fabricated ------------ Exp. Cesium-ion Thruster | x1 | -6/Factory Imp. Hacking Suite | x1 | -6/Factory Exp. Sensor Array | x1 | -5/Factory Exp. Cesium-ion Thruster | x1 | -5/Factory Exp. Cesium-ion Thruster | x1 | -5/Factory Exp. Terrain Scanner | x1 | -4/Factory Adv. Hacking Suite | x1 | -4/Factory Alien Tech Used ----------------- Integrated Reactor Dimensional Node Initializer Transdimensional Reconstructor Achievements -------------- Watch This! Challenges ------------ None Game ------ Seed MagneticPlasmaAxe Manual? 0 Play Time 04:55:05 Cumulative 123.0 hours Start 2020.06.05 @ 19:20:30 End 2020.06.06 @ 14:49:28 Sessions 5 Manual Loads 0 Difficulty Rogue Special Mode None Game No. 72 Rogue 71 Adventurer 1 Explorer 0 Win Type 0 Total 3 Types 2/0/0/1/0/0/0 Lore% 67 Gallery% 74 Achievement% 49 Wizard Run 0 Options --------- ASCII 1 Keyboard 1 Movement Numpad Keybinds 0 Fullscreen 2 Font 24/Smallcaps Map View 76x50 Tactical HUD 1 Map Filters NONE Filters NONE Steam 1 RUN: 3541f3dc-43e1-42e3-b7f5-52ab74fe39de